Cogmind - Beta 11.1 @@@ ROGUE MODE // 2022.06.29 @ 13:11:44 Player: btmk16 Result: Destroyed by Y-45 Defender with Beam Rifle Performance ------------- Evolutions (1) 500 Regions Visited (3) 600 Robots Destroyed (60) 300 Value Destroyed (1030) 1030 Prototype IDs (1) 20 Alien Tech Used (0) 0 Bonus (0) 0 TOTAL SCORE: 2450 Bonus ------- None Cogmind --------- Core Integrity 0/400 Matter 300/300 Energy 99/100 System Corruption 6% Temperature Cool (9) Movement Rolling (100) Location -9/Materials Parts ------- > --- POWER (1) -------- (None) > --- PROPULSION (3) --- Compact Wheel > --- UTILITY (3) ------ Medium Storage Unit Seismic Detector Transport Network Coupler > --- WEAPON (2) ------- Mace Mace > --- INVENTORY (10) --- Cooled Ion Engine Autogun Grenade Launcher Grenade Launcher Mini Grenade Launcher Mini Grenade Launcher Mace Peak State ------------ > --- POWER ------------ Cooled Ion Engine > --- PROPULSION ------- Improved Aluminum Leg Improved Aluminum Leg Improved Aluminum Leg > --- UTILITY ---------- Medium Storage Unit Seismic Detector Transport Network Coupler > --- WEAPON ----------- Mace Mace > --- INVENTORY -------- Cooled Ion Engine Compact Wheel Grenade Launcher Grenade Launcher Mini Grenade Launcher Mini Grenade Launcher Mace [Rating: 17] Favorites ----------- Power Ion Engine Engine Ion Engine Propulsion Aluminum Leg Leg Aluminum Leg Wheel Wheel Flight Unit Flight Unit Utility Medium Storage Unit Device Heat Sink Storage Medium Storage Unit Processor Transport Network Coupler Weapon Light Assault Rifle Energy Gun EM Pulse Gun Energy Cannon Particle Cannon Ballistic Gun Light Assault Rifle Launcher Grenade Launcher Impact Weapon Mace Build | -11 -10 -10 -9 ------- Run | Scr Mat Min Mat Slots Evolved 2 | . . . 2 Power . | . . . . Propulsion 1 | . . . 1 Utility 1 | . . . 1 Weapon . | . . . . Parts Attached 49 | . 10 7 32 Power 6 | . 2 . 4 Engine 6 | . 2 . 4 Core . | . . . . Reactor . | . . . . Propulsion 20 | . 5 . 15 Treads . | . . . . Leg 13 | . 5 . 8 Wheel 3 | . . . 3 Hover . | . . . . Flight 4 | . . . 4 Utility 8 | . 3 . 5 Device 4 | . 2 . 2 Storage 2 | . 1 . 1 Processor 2 | . . . 2 Hackware . | . . . . Protection . | . . . . Artifact . | . . . . Weapon 15 | . . 7 8 Energy Gun . | . . . . Energy Cannon 1 | . . . 1 Ballistic Gun 9 | . . 6 3 Ballistic Cannon . | . . . . Launcher 1 | . . 1 . Special Weapon . | . . . . Impact Weapon 4 | . . . 4 Slashing Weapon . | . . . . Piercing Weapon . | . . . . Special Melee Weapon . | . . . . Unidentified Prototypes 1 | . . . 1 Corrupted Parts 2 | . . . 2 System Corruption 6 | . . . 6 Parts Lost 16 | . . 2 14 Power 1 | . . . 1 Propulsion 10 | . . 1 9 Utility 2 | . . . 2 Weapon 3 | . . 1 2 Highest Loss Streak 4 | . . 2 4 To Critical Strikes . | . . . . Average Slot Usage (%) 92 | . 97 87 92 Engine 12 | . 14 14 10 Leg 22 | . 28 16 23 Flight 1 | . . . 4 Device 11 | . 11 14 10 Storage 12 | . 14 14 9 Processor 3 | . . . 11 Energy Gun 5 | . 14 2 . Ballistic Gun 16 | . 14 25 11 Impact Weapon 2 | . . . 6 Naked Turns . | . . . . Heaviest Build 26 | 11 19 20 26 Greatest Support 39 | 20 20 20 39 Greatest Overweight (x) 8 | . . 1 8 Average Overweight (x) . | . . . . Largest Inventory Capacity 10 | . 10 10 10 Average Capacity 9 | . 8 10 9 Most Carried 10 | . 8 10 10 Average Carried 8 | . 7 9 7 Final Capacity 10 | 8 10 10 10 Final Carried 10 | 6 8 10 7 Class Distribution -------------------- 74% | Scavenger-Mutant 25% | Mutant Dominant Class ---------------- Scavenger-Mutant | -10/Materials Scavenger-Mutant | -10/Mines Scavenger-Mutant | -9/Materials Resources | -11 -10 -10 -9 ----------- Run | Scr Mat Min Mat Matter Collected 1080 | 200 112 198 570 Remotely . | . . . . Salvage Created 1833 | . 558 234 1041 Parts 121 | . 46 32 43 Haulers Intercepted 4 | . 1 . 3 Recyclers Shooed 3 | . . . 3 Parts Field Recycled . | . . . . Retrieved Matter . | . . . . Parts Self-Destructed . | . . . . Prevented . | . . . . Kills | -11 -10 -10 -9 ------- Run | Scr Mat Min Mat Combat Hostiles Destroyed 41 | . 11 15 15 Guns 32 | . 9 12 11 Cannons 3 | . . . 3 AOE 5 | . 2 3 . Classes Destroyed 10 | . 7 1 2 Worker 3 | . 1 . 2 Builder 2 | . 2 . . Tunneler 2 | . . 1 1 Hauler 4 | . 1 . 3 Recycler 4 | . . . 4 Operator 1 | . 1 . . Watcher 3 | . 1 . 2 Swarmer 25 | . 3 15 7 Grunt 12 | . 8 . 4 Sentry 4 | . . . 4 Best Kill Streak 7 | . 7 6 5 Combat Bots Only 6 | . 4 6 4 Max Kills in Single Turn 2 | . 2 2 1 Gunslinging . | . . . . Exploded 2 | . 1 2 . Melee . | . . . . Uniques/NPCs Destroyed . | . . . . Combat | -11 -10 -10 -9 -------- Run | Scr Mat Min Mat Damage Taken 2390 | . 347 232 1811 Core 514 | . 68 38 408 Absorbed by Shields . | . . . . Core Remaining (%) 78 | 100 . 57 . Volleys Fired 138 | . 44 28 66 Largest 2 | . 2 2 2 Hottest 91 | . 60 60 91 Shots Fired 270 | . 88 52 130 Gun 248 | . 88 50 110 Cannon 20 | . . . 20 Launcher 2 | . . 2 . Special . | . . . . Kinetic 188 | . 44 34 110 Thermal 20 | . . . 20 Explosive 2 | . . 2 . Electromagnetic 60 | . 44 16 . Robot Hit Streak 14 | . 11 4 14 Robot Miss Streak 7 | . 5 7 3 Penetration Max . | . . . . Secondary Targets 2 | . 1 1 . Max Gunslinging Chain 1 | . 1 1 . Shots Hit Robots 189 | . 49 23 117 Core Hits 73 | . 26 16 31 Critical Kills . | . . . . Critical Parts Destroyed 6 | . . . 6 Critical Strikes 6 | . . . 6 Destroy 1 | . . . 1 Smash 5 | . . . 5 Melee Attacks 27 | . . . 27 Impact 27 | . . . 27 Slashing . | . . . . Piercing . | . . . . Sneak Attacks 7 | . . . 7 Combat Hostiles . | . . . . Follow-up Attacks 4 | . . . 4 Damage Inflicted 3377 | . 771 444 2162 Guns 1777 | . 563 263 951 Cannons 328 | . . . 328 Explosions 389 | . 208 181 . Melee 883 | . . . 883 Ramming . | . . . . Kinetic 1293 | . 167 175 951 Thermal 536 | . 208 . 328 Explosive 181 | . . 181 . Electromagnetic 484 | . 396 88 . Impact 883 | . . . 883 Slashing . | . . . . Piercing . | . . . . Highest Corruption 6 | . . . 6 Average Corruption 3 | . . . 3 Corruption Purged . | . . . . Corruption Blocked . | . . . . Effects 22 | . . . 22 Message Errors 4 | . . . 4 Matter Fused 4 | . . . 4 Heat Flow Errors 4 | . . . 4 Energy Discharges 2 | . . . 2 Data Loss (minor) 4 | . . . 4 Data Loss (major) 3 | . . . 3 Weapon Failures 1 | . . . 1 Overload Shots . | . . . . Overflow Damage 445 | . . 2 443 Projectiles . | . . . . Explosions 2 | . . 2 . Melee 443 | . . . 443 Knockbacks 1 | . . . 1 Impact 1 | . . . 1 Kinetic . | . . . . Secondary . | . . . . Self-Inflicted Damage 7 | . . 7 . Shots 1 | . . 1 . Rammed . | . . . . Targets Rammed . | . . . . Kicked . | . . . . Crushed . | . . . . Highest Temperature 287 | . 26 . 287 Average Temperature 80 | . 10 . 99 Received Heat Transfer 807 | . 111 . 696 Siege Activations . | . . . . Robots Corrupted . | . . . . Combat Hostiles . | . . . . Parts Fried 9 | . . . 9 Impact Corruptions 16 | . . . 16 Robots Melted . | . . . . Combat Hostiles . | . . . . Parts Melted 3 | . . . 3 Heat Transferred 742 | . 150 . 592 Parts Sabotaged . | . . . . Parts Stolen . | . . . . Parts Stripped . | . . . . Power Chain Reactions 3 | . 3 . . Missiles Intercepted . | . . . . Alert | -11 -10 -10 -9 ------- Run | Scr Mat Min Mat Peak Influence 379 | . 212 379 231 Initial 19 | . . 19 13 Average 133 | . 89 199 107 Maximum Alert Level 1 | . 1 1 1 Low Security (%) 85 | . 95 67 92 Level 1 14 | . 4 32 7 Level 2 . | . . . . Level 3 . | . . . . Level 4 . | . . . . Level 5 . | . . . . High Security . | . . . . Max Security . | . . . . Squads Dispatched 3 | . 3 . . Investigation 1 | . 1 . . Extermination . | . . . . Reinforcement 2 | . 2 . . Assault . | . . . . Garrison . | . . . . Intercept . | . . . . Searches Triggered . | . . . . Construction Impeded . | . . . . Haulers Reinforced . | . . . . Active Scanning Responses . | . . . . Cargo Convoy Interrupts . | . . . . Stealth | -11 -10 -10 -9 --------- Run | Scr Mat Min Mat Distress Signals 6 | . 2 . 4 Communications Jammed . | . . . . Distress Signals . | . . . . Times Spotted 61 | . 17 16 28 Peak Tracking Total 8 | . 3 3 8 Tactical Retreats 3 | . 1 1 1 Traps | -11 -10 -10 -9 ------- Run | Scr Mat Min Mat Traps Triggered 1 | . 1 . . Indirectly . | . . . . Trap Hack Attempts . | . . . . Triggered . | . . . . Disarmed . | . . . . Reprogrammed . | . . . . Reused . | . . . . Traps Extracted . | . . . . Installed . | . . . . Triggered . | . . . . Machines | -11 -10 -10 -9 ---------- Run | Scr Mat Min Mat Machines Disabled 3 | . 1 . 2 Max in Single Turn 1 | . 1 . 1 Machines Sabotaged . | . . . . Garrisons Compromised . | . . . . Overloaded Fab Kills . | . . . . Hacking | -11 -10 -10 -9 --------- Run | Scr Mat Min Mat Machines Accessed 5 | . 2 . 3 Terminals 5 | . 2 . 3 Fabricators . | . . . . Repair Stations . | . . . . Recycling Units . | . . . . Scanalyzers . | . . . . Garrison Access . | . . . . Total Hacks 12 | . 7 . 5 Successful 6 | . 4 . 2 Failed 6 | . 3 . 3 Catastrophic 1 | . . . 1 Database Lockouts . | . . . . Manual 4 | . 3 . 1 Terminals 12 | . 7 . 5 Fabricators . | . . . . Repair Stations . | . . . . Recycling Units . | . . . . Scanalyzers . | . . . . Garrison Access . | . . . . Terminal Hacks 6 | . 4 . 2 Robot Analysis 1 | . 1 . . Alert Level 1 | . 1 . . Locate Traps 1 | . 1 . . Hauler Manifests 3 | . 1 . 2 Fabricator Hacks . | . . . . Repair Station Hacks . | . . . . Recycling Unit Hacks . | . . . . Scanalyzer . | . . . . Garrison Access Hacks . | . . . . Unauthorized Hacks . | . . . . Terminals . | . . . . Fabricators . | . . . . Repair Stations . | . . . . Recycling Units . | . . . . Scanalyzers . | . . . . Garrison Access . | . . . . Data Cores Recovered . | . . . . Used . | . . . . Hacking Detections 4 | . 2 . 2 Full Trace Events . | . . . . Feedback Events . | . . . . Feedback Blocked . | . . . . Robot Schematics Acquired . | . . . . Robots Built . | . . . . Authchips . | . . . . Time . | . . . . Total Robot Build Rating . | . . . . Part Schematics Acquired . | . . . . Parts Built . | . . . . Authchips . | . . . . Time . | . . . . Total Part Build Rating . | . . . . Parts Repaired . | . . . . Time . | . . . . Parts Recycled . | . . . . Recycled Matter . | . . . . Retrieved Matter . | . . . . Retrieved Components . | . . . . Parts Scanalyzed . | . . . . Part Schematics Acquired . | . . . . Parts Damaged . | . . . . Bothacking | -11 -10 -10 -9 ------------ Run | Scr Mat Min Mat Used RIF Installer . | . . . . Robots Hacked . | . . . . Non-combat . | . . . . Combat . | . . . . Robot Hacks Applied . | . . . . Relay Couplers Released . | . . . . Fabnet Peak Effective % . | . . . . Robots Rewired . | . . . . Allies Hacked . | . . . . Hacks Repelled . | . . . . Allies | -11 -10 -10 -9 -------- Run | Scr Mat Min Mat Total Allies . | . . . . Largest Group . | . . . . Highest-Rated Group . | . . . . Highest-Rated Ally . | . . . . Total Orders . | . . . . Ally Attacks . | . . . . Total Damage . | . . . . Kills . | . . . . Allies Corrupted . | . . . . Allies Melted . | . . . . Intel | -11 -10 -10 -9 ------- Run | Scr Mat Min Mat Robot Analysis Total 1 | . 1 . . Derelict Logs Recovered 1 | . . 1 . Drone Launches . | . . . . Drone Recoveries . | . . . . Exploration | -11 -10 -10 -9 ------------- Run | Scr Mat Min Mat Turns Passed 3038 | . 941 1030 1067 Spaces Moved 1945 | 1 628 526 790 Core 2 | . . . 2 Treads . | . . . . Legs 1584 | 1 628 526 429 Wheels 95 | . . . 95 Hover . | . . . . Flight 264 | . . . 264 Fastest Speed 34 | 120 120 120 34 Average Speed 123 | 120 120 177 90 Slowest Speed 520 | 120 120 190 520 Overloaded Moves . | . . . . Propulsion Burnouts . | . . . . Robots Hopped . | . . . . Cave-ins Triggered . | . . . . Exploration Rate (%) 61 | 2 91 96 58 Regions Visited 3 Branch Regions 1 Pre-discovered Areas 1 | . . 1 . Known Exits Taken . | . . . . Unknown Exits Taken 3 | 1 1 1 . Scrap Searched 1 | . . 1 . Spaces Dug 5 | . . 5 . Terrain Destroyed 17 | . 7 10 . Melee . | . . . . Projectile . | . . . . AOE 17 | . 7 10 . Terrain Rammed . | . . . . Walls Destroyed . | . . . . Machines Disabled . | . . . . Actions | -11 -10 -10 -9 --------- Run | Scr Mat Min Mat Total 2302 | . 741 571 990 Wait 96 | . 47 6 43 Move 1942 | . 627 525 790 Hop . | . . . . Pick Up 18 | . 3 2 13 Fast Attach 17 | . 1 . 16 Attach 11 | . . 1 10 Detach 6 | . . . 6 Swap 21 | . 9 6 6 Drop 30 | . 10 3 17 Fire 138 | . 44 28 66 Melee 23 | . . . 23 Ram . | . . . . Kick . | . . . . Crush . | . . . . Escape Stasis . | . . . . Rewire . | . . . . Trap . | . . . . Miscellaneous . | . . . . Route ------- -11/Scrapyard -10/Materials (discovered 5 exits: *Mat x3 / [*Min x2]) -10/Mines (discovered 2 exits: *Mat x2) -9/Materials (discovered 4 exits: [*Mat x2] / [*Sto x2]) History --------- Turn | Location | Event 1 | -11/Scrapyard | Discovered new exit (range 0) 1 | -11/Scrapyard | Entered Materials 254 | -10/Materials | Discovered new exit (range 12) 280 | -10/Materials | Discovered new exit (range 8) 302 | -10/Materials | Build established: Mutant 433 | -10/Materials | Discovered new exit (range 10) 626 | -10/Materials | Discovered new exit (range 12) 672 | -10/Materials | Build established: Scavenger-Mutant 721 | -10/Materials | Discovered new exit (range 16) 942 | -10/Materials | Entered Mines 1067 | -10/Mines | Discovered new exit (range 8) 1271 | -10/Mines | Discovered new exit (range 13) 1738 | -10/Mines | YI-UF0 nonchalantly dropped a Grenade Launcher on the ground 1972 | -10/Mines | Entered Materials 1972 | -9/Materials | Evolved 2 slots: Propulsion x1, Utility x1 2147 | -9/Materials | Lost 4 parts (2n1u1w) 2245 | -9/Materials | Discovered new exit (range 5) 2526 | -9/Materials | Discovered new exit (range 10) 2590 | -9/Materials | Lost 4 parts (3n1u) 2707 | -9/Materials | Discovered new exit (range 3) 2877 | -9/Materials | Core integrity fell below 50% 2918 | -9/Materials | Discovered new exit (range 10) 3006 | -9/Materials | Build established: Mutant 3028 | -9/Materials | Core integrity fell below 20% 3039 | -9/Materials | Destroyed by Y-45 Defender with Beam Rifle Last Messages --------------- 03000_ Imp. Aluminum Leg destroyed. 03008_ Integrated Corrupted Com. Wheel (+3). 03010_ Y-45 Defender suffers critical hit (Smash). 03010_ Destroyed Lgt. Treads. 03010_ Y-45 Defender system corrupted by crushing effect. 03010_ Mace follow-up attack on Y-45 Defender. 03010_ Y-45 Defender suffers critical hit (Smash). 03010_ Destroyed Imp. Ion Engine. 03010_ Y-45 Defender system corrupted by crushing effect. 03012_ Y-45 Defender misfires. 03024_ Cld. Ion Engine destroyed. 03027_ Imp. Aluminum Leg destroyed. 03030_ Critical hit (Burn: +37). 03036_ Sneak attack on K-01 Serf. 03036_ K-01 Serf suffers critical hit (Smash). 03036_ Destroyed Wheel. 03036_ Destroyed Sml. Matter Pod. 03036_ Destroyed Wheel. 03036_ K-01 Serf system corrupted by crushing effect. 03036_ K-01 Serf destroyed. Map ----- +----------------------------------------------------+ | ????????????# #????????????????????????????????? | | ????????????# #????????????????????????????????? | | ????????????# #????????????????????????????????? | | ????????????# +????????????????????????????????? | | ????????????# #????????????????????????????????? | | ????????????# #????????????????????????????????? | | ????????????# #????????????????????????????????? | | ????????????# #????????????????????????????????? | | ????????????# #????????????????????????????????? | | ????????????? #????????????????##??????????????? | | ????????????? #???????????????## ######????????? | | ????????????? ??? ?????????# #???####?? | | ????????????? ?? ?????????# #??? ?a | | ?????????????????" ?????????# #??? ??? | | ????????????????"" ?????????# #??? ??? | | ????????????????"T ?????????# [[!#??? #??? | | #????????????? "" ?????????# [=!#?? #??? | | #####????????? "" ?????????# [!!#?? #??? | | ??????? #????????# #?? #??? | | ??????? a #????????# #?? #??? | | ??? ? """ #????????# #?? #??? | | ??? """ #????????# ### ##?? | | #???????? """ #????????####+##### #?? | | ????????? #??????????# #?? | | ???????????? ############ #?? | | #???????? """"" % @ Yg Y Y #?? | | #??????? """"" #############/##### #?? | | #?????? """"" #?????????????????#######?? | | #???????????# #?????????????????????????? | | #???????????## #?????????????????????????? | | ?????????????# """"" #?????????????????????????? | | ?????????????# """"" #?????????????????????????? | | ?????????????# """"" #?????????????????????????? | | ?????????????# #?????????????????????????? | | ?????????????# #?????????????????????????? | | ???########### """"" #?????????????????????????? | | ???# # """"" #?????????????????????????? | | #### # """"" #?????????????????????????? | | + # #?????????????????????????? | | #### + #?????????????????????????? | | ???# """ """ # """" #?????????????????????????? | | ???# "Y """ # """ " #?????????????????????????? | | ???# """ """ # " "" ##????????????????????????? | | ???# # #????????????????????????? | | ############## #????????????????????????? | | ???????# % #????????????????????????? | | """ ""??????#####+### #????????????????????????? | | """ """#????# # #????????????????????????? | | """ S"#????## # #????????????????????????? | | #?????# "" # ########?????????????????? | +----------------------------------------------------+ Best States ------------- Heat Dissipation 42 Energy Generation 14 Energy Capacity 280 Matter Stores 300 Matter Capacity 300 Sight Range 16 Terrain Scan Density 10 Evasion (%) 63 Targeting Accuracy 6 Item Schematics ----------------- None Robot Schematics ------------------ None Fabricated ------------ Nothing Alien Tech Used ----------------- None Achievements -------------- None Challenges ------------ None Game ------ Seed ProcessingExplosiveMaul Manual? 0 Play Time 00:21:31 Cumulative 356.4 hours Start 2022.06.29 @ 12:50:16 End 2022.06.29 @ 13:11:44 Sessions 1 Manual Loads 0 Difficulty Rogue Special Mode None Game No. 430 Rogue 429 Adventurer 0 Explorer 1 Win Type - Total 9 Types 6/0/1/2/0/0/0/0/0 Lore% 73 Gallery% 84 Achievement% 62 Wizard Run 0 Options --------- ASCII 0 Keyboard 1 Movement Vi Keybinds 0 Fullscreen 1 Font 18/SmallcapsGlow Map View 76x50 Tactical HUD 1 Map Filters NONE Filters NONE Steam 1 RUN: f3742d5a-0576-4b5b-9c9c-9e32a8cf7dad